[Event "Titled Tuesday Blitz July 6 2021"]
[White "Novikov, Evgenij"]
[Black "Svane, Frederik"]
[WhiteFideId "4125380"]
[BlackFideId "12923044"]
[WhiteElo "2242"]
[BlackElo "2459"]
[Result "1-0"]
[Round "04"]
[TimeControl "180+1"]
[Date "2021.07.06"]
[WhiteClock "0:00:42"]
[BlackClock "0:00:01"]

1. d4 {[%clk 0:03:00]}  Nf6 {[%clk 0:03:00]} 2. Bf4 {[%clk 0:02:59]}  Nh5 {[%clk 0:02:55]} 3. Bc1 {[%clk 0:02:55]}  Nf6 {[%clk 0:02:53]} 4. Bf4 {[%clk 0:02:55]}  Nh5 {[%clk 0:02:49]} 5. Bc1 {[%clk 0:02:41]}  g6 {[%clk 0:02:50]} 6. e4 {[%clk 0:02:39]}  d6 {[%clk 0:02:49]} 7. Be2 {[%clk 0:02:33]}  Nf6 {[%clk 0:02:48]} 8. Nc3 {[%clk 0:02:33]}  Bg7 {[%clk 0:02:48]} 9. Nf3 {[%clk 0:02:33]}  O-O {[%clk 0:02:45]} 10. O-O {[%clk 0:02:33]}  Nbd7 {[%clk 0:02:37]} 11. h3 {[%clk 0:02:31]}  e5 {[%clk 0:02:37]} 12. Re1 {[%clk 0:02:26]}  Re8 {[%clk 0:02:35]} 13. dxe5 {[%clk 0:02:23]}  dxe5 {[%clk 0:02:19]} 14. Bg5 {[%clk 0:02:16]}  c6 {[%clk 0:02:13]} 15. Qd2 {[%clk 0:02:13]}  Qc7 {[%clk 0:02:09]} 16. Rad1 {[%clk 0:02:08]}  Nc5 {[%clk 0:02:03]} 17. Bf1 {[%clk 0:02:01]}  Ne6 {[%clk 0:01:58]} 18. Bh6 {[%clk 0:01:44]}  Rd8 {[%clk 0:01:44]} 19. Qc1 {[%clk 0:01:39]}  Bd7 {[%clk 0:01:24]} 20. Bxg7 {[%clk 0:01:36]}  Kxg7 {[%clk 0:01:25]} 21. a4 {[%clk 0:01:30]}  Nf4 {[%clk 0:01:17]} 22. Kh2 {[%clk 0:01:26]}  Be8 {[%clk 0:00:53]} 23. g3 {[%clk 0:01:25]}  Ne6 {[%clk 0:00:53]} 24. Qe3 {[%clk 0:01:21]}  a6 {[%clk 0:00:39]} 25. Bc4 {[%clk 0:01:13]}  Bd7 {[%clk 0:00:23]} 26. Ng5 {[%clk 0:01:08]}  Nxg5 {[%clk 0:00:20]} 27. Qxg5 {[%clk 0:01:09]}  b5 {[%clk 0:00:18]} 28. axb5 {[%clk 0:01:10]}  axb5 {[%clk 0:00:18]} 29. Bf1 {[%clk 0:01:09]}  Be6 {[%clk 0:00:16]} 30. Qe3 {[%clk 0:01:06]}  b4 {[%clk 0:00:09]} 31. Rxd8 {[%clk 0:00:57]}  Rxd8 {[%clk 0:00:10]} 32. Na4 {[%clk 0:00:55]}  Rd4 {[%clk 0:00:04]} 33. Nc5 {[%clk 0:00:53]}  Qd6 {[%clk 0:00:03]} 34. Nxe6+ {[%clk 0:00:53]}  Qxe6 {[%clk 0:00:03]} 35. Bd3 {[%clk 0:00:52]}  Qd6 {[%clk 0:00:01]} 36. b3 {[%clk 0:00:52]}  c5 {[%clk 0:00:01]} 37. Kg2 {[%clk 0:00:49]}  Qc6 {[%clk 0:00:02]} 38. Kg1 {[%clk 0:00:46]}  h6 {[%clk 0:00:01]} 39. Ra1 {[%clk 0:00:43]}  Qc7 {[%clk 0:00:01]} 40. Ra6 {[%clk 0:00:42]}  Qb7 {[%clk 0:00:01]} 41. Qf3 {[%clk 0:00:42]} 1-0


[Site "https://www.chess.com"]

[Event "Titled Tuesday Blitz July 6 2021"]
[White "Oliveira, Silvio Eduardo"]
[Black "Principe, Gerson"]
[WhiteFideId "2111560"]
[BlackFideId "3804550"]
[WhiteElo "2302"]
[BlackElo "2280"]
[Result "1-0"]
[Round "04"]
[TimeControl "180+1"]
[Date "2021.07.06"]
[WhiteClock "0:01:41"]
[BlackClock "0:00:39"]

1. e4 {[%clk 0:03:00]}  c5 {[%clk 0:02:59]} 2. Nf3 {[%clk 0:03:00]}  e6 {[%clk 0:02:59]} 3. d4 {[%clk 0:03:00]}  cxd4 {[%clk 0:03:00]} 4. Nxd4 {[%clk 0:03:01]}  Nf6 {[%clk 0:03:00]} 5. Nc3 {[%clk 0:03:01]}  Nc6 {[%clk 0:03:01]} 6. Nxc6 {[%clk 0:03:01]}  bxc6 {[%clk 0:03:01]} 7. e5 {[%clk 0:03:02]}  Nd5 {[%clk 0:03:01]} 8. Ne4 {[%clk 0:03:03]}  Qc7 {[%clk 0:03:01]} 9. f4 {[%clk 0:03:03]}  Qb6 {[%clk 0:03:01]} 10. c4 {[%clk 0:03:03]}  Bb4+ {[%clk 0:03:02]} 11. Ke2 {[%clk 0:03:04]}  f5 {[%clk 0:03:02]} 12. exf6 {[%clk 0:03:03]}  Nxf6 {[%clk 0:03:00]} 13. Be3 {[%clk 0:03:03]}  Qd8 {[%clk 0:02:59]} 14. Nd6+ {[%clk 0:03:04]}  Bxd6 {[%clk 0:02:59]} 15. Qxd6 {[%clk 0:03:05]}  c5 {[%clk 0:02:54]} 16. Rd1 {[%clk 0:02:55]}  Bb7 {[%clk 0:02:39]} 17. Rg1 {[%clk 0:02:47]}  Ne4 {[%clk 0:02:21]} 18. Qe5 {[%clk 0:02:45]}  O-O {[%clk 0:02:15]} 19. g4 {[%clk 0:02:11]}  Qh4 {[%clk 0:01:42]} 20. Rxd7 {[%clk 0:02:06]}  Qxh2+ {[%clk 0:01:38]} 21. Bg2 {[%clk 0:01:52]}  Nf6 {[%clk 0:00:42]} 22. Rxb7 {[%clk 0:01:46]}  Rae8 {[%clk 0:00:39]} 23. Qc7 {[%clk 0:01:41]} 1-0


[Site "https://www.chess.com"]

[Event "Titled Tuesday Blitz July 6 2021"]
[White "Onyshchuk, Volodymyr"]
[Black "deribas12345"]
[WhiteFideId "14114038"]
[WhiteElo "2603"]
[BlackElo "2542"]
[Result "1-0"]
[Round "04"]
[TimeControl "180+1"]
[Date "2021.07.06"]
[WhiteClock "0:01:10"]
[BlackClock "0:00:10"]

1. Nf3 {[%clk 0:03:00]}  c5 {[%clk 0:02:53]} 2. g3 {[%clk 0:03:01]}  d5 {[%clk 0:02:53]} 3. Bg2 {[%clk 0:03:01]}  Nc6 {[%clk 0:02:53]} 4. O-O {[%clk 0:03:00]}  e5 {[%clk 0:02:54]} 5. d3 {[%clk 0:03:01]}  Nge7 {[%clk 0:02:54]} 6. c4 {[%clk 0:02:58]}  d4 {[%clk 0:02:54]} 7. b4 {[%clk 0:02:54]}  cxb4 {[%clk 0:02:54]} 8. a3 {[%clk 0:02:54]}  Ng6 {[%clk 0:02:54]} 9. Qa4 {[%clk 0:02:50]}  Bd7 {[%clk 0:02:51]} 10. Ne1 {[%clk 0:02:48]}  a5 {[%clk 0:02:43]} 11. axb4 {[%clk 0:02:42]}  Bxb4 {[%clk 0:02:42]} 12. Nc2 {[%clk 0:02:41]}  O-O {[%clk 0:02:40]} 13. Ba3 {[%clk 0:02:37]}  e4 {[%clk 0:02:19]} 14. Bxe4 {[%clk 0:02:33]}  Nce5 {[%clk 0:02:18]} 15. Qb3 {[%clk 0:02:32]}  Bh3 {[%clk 0:02:18]} 16. Rc1 {[%clk 0:02:27]}  Qg5 {[%clk 0:02:10]} 17. Nxd4 {[%clk 0:01:59]}  Kh8 {[%clk 0:01:32]} 18. Nf3 {[%clk 0:01:43]}  Nxf3+ {[%clk 0:01:30]} 19. Bxf3 {[%clk 0:01:43]}  Ne5 {[%clk 0:01:22]} 20. Bh1 {[%clk 0:01:35]}  Ng4 {[%clk 0:01:21]} 21. Nc3 {[%clk 0:01:28]}  Nxf2 {[%clk 0:01:07]} 22. Kxf2 {[%clk 0:01:26]}  Qf6+ {[%clk 0:00:49]} 23. Ke1 {[%clk 0:01:25]}  Qb6 {[%clk 0:00:39]} 24. Bxb4 {[%clk 0:01:24]}  axb4 {[%clk 0:00:35]} 25. Rxa8 {[%clk 0:01:12]}  Qg1+ {[%clk 0:00:33]} 26. Kd2 {[%clk 0:01:11]}  bxc3+ {[%clk 0:00:31]} 27. Qxc3 {[%clk 0:01:11]}  Rxa8 {[%clk 0:00:10]} 28. Rxg1 {[%clk 0:01:10]} 1-0


[Site "https://www.chess.com"]

[Event "Titled Tuesday Blitz July 6 2021"]
[White "Orozbaev, Eldiar"]
[Black "Obregon, Andres Carlos"]
[WhiteFideId "13802240"]
[BlackFideId "111724"]
[WhiteElo "1911"]
[BlackElo "2572"]
[Result "1/2-1/2"]
[Round "04"]
[TimeControl "180+1"]
[Date "2021.07.06"]
[WhiteClock "0:00:06"]
[BlackClock "0:00:06"]

1. e4 {[%clk 0:02:54]}  c6 {[%clk 0:02:58]} 2. Nc3 {[%clk 0:02:54]}  d5 {[%clk 0:02:58]} 3. Nf3 {[%clk 0:02:55]}  Bg4 {[%clk 0:02:57]} 4. h3 {[%clk 0:02:54]}  Bxf3 {[%clk 0:02:55]} 5. Qxf3 {[%clk 0:02:55]}  e6 {[%clk 0:02:55]} 6. d4 {[%clk 0:02:53]}  Nf6 {[%clk 0:02:41]} 7. a3 {[%clk 0:02:48]}  dxe4 {[%clk 0:02:35]} 8. Qe3 {[%clk 0:02:48]}  Nbd7 {[%clk 0:02:09]} 9. Nxe4 {[%clk 0:02:46]}  Nxe4 {[%clk 0:02:08]} 10. Qxe4 {[%clk 0:02:47]}  Nf6 {[%clk 0:02:09]} 11. Qd3 {[%clk 0:02:46]}  Be7 {[%clk 0:02:07]} 12. c3 {[%clk 0:02:44]}  O-O {[%clk 0:02:05]} 13. Bg5 {[%clk 0:02:42]}  Qd5 {[%clk 0:02:04]} 14. Bxf6 {[%clk 0:02:36]}  Bxf6 {[%clk 0:02:04]} 15. O-O-O {[%clk 0:02:34]}  c5 {[%clk 0:02:01]} 16. dxc5 {[%clk 0:02:30]}  Qxc5 {[%clk 0:02:01]} 17. Qc4 {[%clk 0:02:26]}  Qxf2 {[%clk 0:02:01]} 18. Bd3 {[%clk 0:02:24]}  Qxg2 {[%clk 0:01:29]} 19. Rhg1 {[%clk 0:02:19]}  Qxh3 {[%clk 0:01:24]} 20. Qe4 {[%clk 0:02:11]}  g6 {[%clk 0:01:18]} 21. Rdf1 {[%clk 0:02:09]}  Qh6+ {[%clk 0:01:09]} 22. Kb1 {[%clk 0:02:08]}  Qg7 {[%clk 0:01:09]} 23. Rh1 {[%clk 0:01:53]}  Rad8 {[%clk 0:01:06]} 24. Rf3 {[%clk 0:01:49]}  b6 {[%clk 0:01:05]} 25. Rfh3 {[%clk 0:01:49]}  Rd5 {[%clk 0:01:01]} 26. Bc4 {[%clk 0:01:42]}  Re5 {[%clk 0:00:57]} 27. Qc2 {[%clk 0:01:41]}  h5 {[%clk 0:00:57]} 28. Rg1 {[%clk 0:01:33]}  Rd8 {[%clk 0:00:56]} 29. Ka2 {[%clk 0:01:32]}  h4 {[%clk 0:00:56]} 30. Rg4 {[%clk 0:01:30]}  b5 {[%clk 0:00:54]} 31. Bb3 {[%clk 0:01:30]}  a5 {[%clk 0:00:53]} 32. a4 {[%clk 0:01:27]}  bxa4 {[%clk 0:00:53]} 33. Bxa4 {[%clk 0:01:28]}  g5 {[%clk 0:00:51]} 34. Qg2 {[%clk 0:01:22]}  Red5 {[%clk 0:00:45]} 35. Bb3 {[%clk 0:01:19]}  Rd2 {[%clk 0:00:45]} 36. Qc6 {[%clk 0:01:16]}  Rf2 {[%clk 0:00:38]} 37. Rf3 {[%clk 0:00:40]}  Rxf3 {[%clk 0:00:38]} 38. Qxf3 {[%clk 0:00:41]}  Be5 {[%clk 0:00:37]} 39. Qg2 {[%clk 0:00:37]}  Bf4 {[%clk 0:00:35]} 40. Bc2 {[%clk 0:00:36]}  Rd2 {[%clk 0:00:34]} 41. Qa8+ {[%clk 0:00:34]}  Qf8 {[%clk 0:00:34]} 42. Qe4 {[%clk 0:00:34]}  Qd6 {[%clk 0:00:30]} 43. Qh7+ {[%clk 0:00:24]}  Kf8 {[%clk 0:00:30]} 44. Ba4 {[%clk 0:00:25]}  Qd5+ {[%clk 0:00:27]} 45. Bb3 {[%clk 0:00:22]}  Qf5 {[%clk 0:00:27]} 46. Qh8+ {[%clk 0:00:22]}  Ke7 {[%clk 0:00:28]} 47. Rg1 {[%clk 0:00:20]}  Be5 {[%clk 0:00:25]} 48. Qc8 {[%clk 0:00:19]}  Qf2 {[%clk 0:00:23]} 49. Rb1 {[%clk 0:00:18]}  h3 {[%clk 0:00:23]} 50. Qb7+ {[%clk 0:00:16]}  Kf6 {[%clk 0:00:23]} 51. Bc4 {[%clk 0:00:15]}  Bxc3 {[%clk 0:00:22]} 52. Rf1 {[%clk 0:00:14]}  Rxb2+ {[%clk 0:00:22]} 53. Qxb2 {[%clk 0:00:13]}  Bxb2 {[%clk 0:00:17]} 54. Rxf2+ {[%clk 0:00:13]}  Ke5 {[%clk 0:00:16]} 55. Kxb2 {[%clk 0:00:13]}  g4 {[%clk 0:00:16]} 56. Bf1 {[%clk 0:00:13]}  f5 {[%clk 0:00:16]} 57. Kc2 {[%clk 0:00:13]}  Ke4 {[%clk 0:00:15]} 58. Kd2 {[%clk 0:00:12]}  f4 {[%clk 0:00:15]} 59. Re2+ {[%clk 0:00:10]}  Kf3 {[%clk 0:00:15]} 60. Rxe6 {[%clk 0:00:10]}  Kf2 {[%clk 0:00:15]} 61. Be2 {[%clk 0:00:09]}  f3 {[%clk 0:00:15]} 62. Bd1 {[%clk 0:00:04]}  h2 {[%clk 0:00:15]} 63. Rh6 {[%clk 0:00:04]}  g3 {[%clk 0:00:15]} 64. Kd3 {[%clk 0:00:03]}  g2 {[%clk 0:00:11]} 65. Rxh2 {[%clk 0:00:02]}  Kg3 {[%clk 0:00:11]} 66. Bxf3 {[%clk 0:00:02]}  g1=Q {[%clk 0:00:05]} 67. Rg2+ {[%clk 0:00:02]}  Qxg2 {[%clk 0:00:06]} 68. Bxg2 {[%clk 0:00:03]}  Kxg2 {[%clk 0:00:06]} 69. Kc3 {[%clk 0:00:04]}  Kf3 {[%clk 0:00:05]} 70. Kb3 {[%clk 0:00:05]}  Ke3 {[%clk 0:00:05]} 71. Ka4 {[%clk 0:00:05]}  Kd3 {[%clk 0:00:06]} 72. Kxa5 {[%clk 0:00:06]} 1/2-1/2


[Site "https://www.chess.com"]

[Event "Titled Tuesday Blitz July 6 2021"]
[White "Petriashvili, Nikoloz"]
[Black "Pridorozhni, Aleksei"]
[WhiteFideId "13611216"]
[BlackFideId "4127870"]
[WhiteElo "2430"]
[BlackElo "2565"]
[Result "1-0"]
[Round "04"]
[TimeControl "180+1"]
[Date "2021.07.06"]
[WhiteClock "0:00:05"]
[BlackClock "0:00:03"]

1. e4 {[%clk 0:03:00]}  c5 {[%clk 0:02:58]} 2. Nf3 {[%clk 0:02:59]}  e6 {[%clk 0:02:58]} 3. d4 {[%clk 0:02:59]}  cxd4 {[%clk 0:02:59]} 4. Nxd4 {[%clk 0:03:00]}  Nf6 {[%clk 0:03:00]} 5. Nc3 {[%clk 0:02:56]}  Nc6 {[%clk 0:03:00]} 6. Nxc6 {[%clk 0:02:55]}  bxc6 {[%clk 0:03:01]} 7. e5 {[%clk 0:02:55]}  Nd5 {[%clk 0:03:01]} 8. Ne4 {[%clk 0:02:51]}  Qc7 {[%clk 0:03:01]} 9. f4 {[%clk 0:02:49]}  Rb8 {[%clk 0:03:02]} 10. c4 {[%clk 0:02:45]}  Bb4+ {[%clk 0:03:02]} 11. Kf2 {[%clk 0:02:43]}  O-O {[%clk 0:03:02]} 12. cxd5 {[%clk 0:02:37]}  cxd5 {[%clk 0:03:02]} 13. Nc3 {[%clk 0:02:18]}  f6 {[%clk 0:03:00]} 14. exf6 {[%clk 0:02:17]}  Rxf6 {[%clk 0:03:00]} 15. Ne2 {[%clk 0:02:04]}  Bc5+ {[%clk 0:02:55]} 16. Ke1 {[%clk 0:01:37]}  Qb6 {[%clk 0:02:47]} 17. Qb3 {[%clk 0:01:30]}  Qa5+ {[%clk 0:02:18]} 18. Bd2 {[%clk 0:01:29]}  Rxb3 {[%clk 0:02:19]} 19. Bxa5 {[%clk 0:01:28]}  Rxb2 {[%clk 0:02:18]} 20. Rc1 {[%clk 0:01:12]}  d6 {[%clk 0:02:18]} 21. Bc3 {[%clk 0:01:11]}  Rxa2 {[%clk 0:02:19]} 22. Bxf6 {[%clk 0:01:10]}  gxf6 {[%clk 0:02:20]} 23. h4 {[%clk 0:01:03]}  Bd7 {[%clk 0:01:58]} 24. Rh3 {[%clk 0:01:03]}  a5 {[%clk 0:01:53]} 25. Rb3 {[%clk 0:00:57]}  Bb4+ {[%clk 0:01:39]} 26. Kf2 {[%clk 0:00:57]}  e5 {[%clk 0:01:37]} 27. Rc7 {[%clk 0:00:53]}  Bf5 {[%clk 0:01:27]} 28. Rg3+ {[%clk 0:00:52]}  Kf8 {[%clk 0:01:13]} 29. Rgg7 {[%clk 0:00:48]}  d4 {[%clk 0:00:54]} 30. Rcf7+ {[%clk 0:00:46]}  Ke8 {[%clk 0:00:54]} 31. Rb7 {[%clk 0:00:46]}  Kf8 {[%clk 0:00:52]} 32. Rbf7+ {[%clk 0:00:40]}  Ke8 {[%clk 0:00:52]} 33. Ra7 {[%clk 0:00:40]}  Kf8 {[%clk 0:00:41]} 34. Rgb7 {[%clk 0:00:39]}  Bg6 {[%clk 0:00:33]} 35. Rb8+ {[%clk 0:00:38]}  Be8 {[%clk 0:00:33]} 36. Raa8 {[%clk 0:00:38]}  d3 {[%clk 0:00:34]} 37. Rxe8+ {[%clk 0:00:37]}  Kf7 {[%clk 0:00:33]} 38. Ke3 {[%clk 0:00:11]}  d2 {[%clk 0:00:22]} 39. Nc3 {[%clk 0:00:10]}  Bxc3 {[%clk 0:00:23]} 40. Bc4+ {[%clk 0:00:11]}  Kg7 {[%clk 0:00:23]} 41. Be2 {[%clk 0:00:06]}  Ra1 {[%clk 0:00:18]} 42. f5 {[%clk 0:00:04]}  Re1 {[%clk 0:00:16]} 43. Kd3 {[%clk 0:00:03]}  Bb4 {[%clk 0:00:13]} 44. g4 {[%clk 0:00:04]}  d1=Q+ {[%clk 0:00:06]} 45. Bxd1 {[%clk 0:00:04]}  Rxd1+ {[%clk 0:00:07]} 46. Kc4 {[%clk 0:00:04]}  Rd4+ {[%clk 0:00:07]} 47. Kb5 {[%clk 0:00:05]}  Kh6 {[%clk 0:00:07]} 48. Rg8 {[%clk 0:00:04]}  Be1 {[%clk 0:00:03]} 49. g5+ {[%clk 0:00:03]}  fxg5 {[%clk 0:00:02]} 50. hxg5+ {[%clk 0:00:04]}  Kh5 {[%clk 0:00:03]} 51. f6 {[%clk 0:00:05]}  Rf4 {[%clk 0:00:02]} 52. Ra7 {[%clk 0:00:05]}  Bb4 {[%clk 0:00:02]} 53. Rxh7+ {[%clk 0:00:04]}  Kg4 {[%clk 0:00:03]} 54. f7 {[%clk 0:00:05]}  d5 {[%clk 0:00:03]} 55. g6 {[%clk 0:00:05]}  Kg5 {[%clk 0:00:03]} 56. g7 {[%clk 0:00:05]}  Kg6 {[%clk 0:00:03]} 57. Rgh8 {[%clk 0:00:03]}  Rxf7 {[%clk 0:00:02]} 58. g8=Q+ {[%clk 0:00:04]}  Kf6 {[%clk 0:00:03]} 59. Qxf7+ {[%clk 0:00:04]}  Kg5 {[%clk 0:00:03]} 60. Rg7# {[%clk 0:00:05]} 1-0


[Site "https://www.chess.com"]

[Event "Titled Tuesday Blitz July 6 2021"]
[White "Potapova, Margarita"]
[Black "Leve, Nitai"]
[WhiteFideId "14126869"]
[BlackFideId "2006898"]
[WhiteElo "2229"]
[BlackElo "2144"]
[Result "0-1"]
[Round "04"]
[TimeControl "180+1"]
[Date "2021.07.06"]
[WhiteClock "0:00:04"]
[BlackClock "0:00:24"]

1. d4 {[%clk 0:03:00]}  d5 {[%clk 0:03:00]} 2. c4 {[%clk 0:03:01]}  c6 {[%clk 0:03:00]} 3. Nf3 {[%clk 0:03:00]}  Nf6 {[%clk 0:03:00]} 4. g3 {[%clk 0:02:59]}  dxc4 {[%clk 0:03:00]} 5. Bg2 {[%clk 0:02:59]}  Bf5 {[%clk 0:03:00]} 6. O-O {[%clk 0:02:41]}  e6 {[%clk 0:03:00]} 7. Ne5 {[%clk 0:02:36]}  Nbd7 {[%clk 0:02:54]} 8. Nxc4 {[%clk 0:02:34]}  Be7 {[%clk 0:02:52]} 9. Nc3 {[%clk 0:02:34]}  Bg6 {[%clk 0:02:50]} 10. e4 {[%clk 0:02:32]}  O-O {[%clk 0:02:46]} 11. Qe2 {[%clk 0:02:32]}  c5 {[%clk 0:02:41]} 12. d5 {[%clk 0:02:29]}  exd5 {[%clk 0:02:40]} 13. exd5 {[%clk 0:02:29]}  Re8 {[%clk 0:02:40]} 14. Be3 {[%clk 0:02:26]}  Nb6 {[%clk 0:02:36]} 15. Nxb6 {[%clk 0:02:17]}  Qxb6 {[%clk 0:02:30]} 16. Rfd1 {[%clk 0:02:07]}  Rad8 {[%clk 0:02:29]} 17. b3 {[%clk 0:01:56]}  Bh5 {[%clk 0:02:24]} 18. Bf3 {[%clk 0:01:46]}  Bxf3 {[%clk 0:02:22]} 19. Qxf3 {[%clk 0:01:46]}  Bd6 {[%clk 0:02:09]} 20. Rac1 {[%clk 0:01:43]}  Qa5 {[%clk 0:01:57]} 21. Bg5 {[%clk 0:01:23]}  Be5 {[%clk 0:01:44]} 22. Ne4 {[%clk 0:01:23]}  Nxe4 {[%clk 0:01:39]} 23. Bxd8 {[%clk 0:01:21]}  Qxd8 {[%clk 0:01:40]} 24. Qxe4 {[%clk 0:01:19]}  Bb2 {[%clk 0:01:40]} 25. Qf3 {[%clk 0:01:10]}  Bxc1 {[%clk 0:01:39]} 26. Rxc1 {[%clk 0:01:11]}  Qd6 {[%clk 0:01:34]} 27. Rd1 {[%clk 0:00:58]}  g6 {[%clk 0:01:28]} 28. Kg2 {[%clk 0:00:57]}  b5 {[%clk 0:01:27]} 29. Qf4 {[%clk 0:00:55]}  Qxf4 {[%clk 0:01:16]} 30. gxf4 {[%clk 0:00:56]}  Kg7 {[%clk 0:01:16]} 31. Kf3 {[%clk 0:00:48]}  Kf6 {[%clk 0:01:17]} 32. Rc1 {[%clk 0:00:40]}  Rc8 {[%clk 0:01:16]} 33. Ke4 {[%clk 0:00:39]}  Ke7 {[%clk 0:01:17]} 34. b4 {[%clk 0:00:34]}  c4 {[%clk 0:01:10]} 35. Kd4 {[%clk 0:00:34]}  Kd7 {[%clk 0:01:00]} 36. a4 {[%clk 0:00:30]}  bxa4 {[%clk 0:00:53]} 37. Kc3 {[%clk 0:00:24]}  Kd6 {[%clk 0:00:51]} 38. Rd1 {[%clk 0:00:21]}  a3 {[%clk 0:00:51]} 39. f3 {[%clk 0:00:20]}  a2 {[%clk 0:00:49]} 40. h3 {[%clk 0:00:19]}  h5 {[%clk 0:00:45]} 41. Ra1 {[%clk 0:00:16]}  Kxd5 {[%clk 0:00:43]} 42. Rxa2 {[%clk 0:00:17]}  Rc7 {[%clk 0:00:42]} 43. Ra5+ {[%clk 0:00:16]}  Ke6 {[%clk 0:00:40]} 44. Re5+ {[%clk 0:00:15]}  Kf6 {[%clk 0:00:40]} 45. Rd5 {[%clk 0:00:12]}  Rc6 {[%clk 0:00:36]} 46. Re5 {[%clk 0:00:10]}  h4 {[%clk 0:00:33]} 47. Rd5 {[%clk 0:00:10]}  Ke6 {[%clk 0:00:31]} 48. Re5+ {[%clk 0:00:10]}  Kd6 {[%clk 0:00:31]} 49. Ra5 {[%clk 0:00:10]}  a6 {[%clk 0:00:30]} 50. f5 {[%clk 0:00:10]}  Ke7 {[%clk 0:00:25]} 51. fxg6 {[%clk 0:00:10]}  fxg6 {[%clk 0:00:26]} 52. f4 {[%clk 0:00:10]}  Rf6 {[%clk 0:00:25]} 53. Kxc4 {[%clk 0:00:10]}  Rxf4+ {[%clk 0:00:26]} 54. Kd3 {[%clk 0:00:04]}  Rf3+ {[%clk 0:00:26]} 55. Ke4 {[%clk 0:00:04]}  Rxh3 {[%clk 0:00:26]} 56. Rxa6 {[%clk 0:00:05]}  Kf7 {[%clk 0:00:25]} 57. Kf4 {[%clk 0:00:05]}  Rb3 {[%clk 0:00:24]} 58. Rb6 {[%clk 0:00:04]}  h3 {[%clk 0:00:24]} 0-1


[Site "https://www.chess.com"]

[Event "Titled Tuesday Blitz July 6 2021"]
[White "Praveen, Kumar C"]
[Black "Nguyen, Hong Anh"]
[WhiteFideId "5007372"]
[BlackFideId "12406732"]
[WhiteElo "2236"]
[BlackElo "1974"]
[Result "1-0"]
[Round "04"]
[TimeControl "180+1"]
[Date "2021.07.06"]
[WhiteClock "0:00:16"]
[BlackClock "0:00:18"]

1. d4 {[%clk 0:02:59]}  Nf6 {[%clk 0:02:59]} 2. c4 {[%clk 0:02:59]}  g6 {[%clk 0:02:59]} 3. Nc3 {[%clk 0:02:59]}  d5 {[%clk 0:02:58]} 4. cxd5 {[%clk 0:03:00]}  Nxd5 {[%clk 0:02:59]} 5. e4 {[%clk 0:03:01]}  Nxc3 {[%clk 0:02:59]} 6. bxc3 {[%clk 0:03:02]}  Bg7 {[%clk 0:03:00]} 7. Bc4 {[%clk 0:03:02]}  c5 {[%clk 0:03:00]} 8. Ne2 {[%clk 0:03:03]}  O-O {[%clk 0:02:59]} 9. O-O {[%clk 0:03:03]}  Nc6 {[%clk 0:02:59]} 10. Be3 {[%clk 0:03:03]}  Qc7 {[%clk 0:02:59]} 11. Rb1 {[%clk 0:03:03]}  Rd8 {[%clk 0:03:00]} 12. Bf4 {[%clk 0:03:01]}  Qd7 {[%clk 0:02:59]} 13. dxc5 {[%clk 0:02:46]}  Qe8 {[%clk 0:02:58]} 14. Bd5 {[%clk 0:02:43]}  Ne5 {[%clk 0:02:39]} 15. Qb3 {[%clk 0:02:36]}  e6 {[%clk 0:02:36]} 16. Bxe5 {[%clk 0:02:32]}  exd5 {[%clk 0:02:21]} 17. Bxg7 {[%clk 0:02:31]}  Kxg7 {[%clk 0:02:20]} 18. Nd4 {[%clk 0:02:22]}  dxe4 {[%clk 0:02:14]} 19. Rfe1 {[%clk 0:02:21]}  Qe7 {[%clk 0:02:03]} 20. c6 {[%clk 0:02:19]}  Rb8 {[%clk 0:02:02]} 21. Qb4 {[%clk 0:02:08]}  Qe5 {[%clk 0:01:50]} 22. Rxe4 {[%clk 0:01:24]}  Qxe4 {[%clk 0:01:43]} 23. c7 {[%clk 0:01:22]}  Bf5 {[%clk 0:01:25]} 24. cxb8=Q {[%clk 0:01:09]}  Rxb8 {[%clk 0:01:24]} 25. Re1 {[%clk 0:01:08]}  Qd5 {[%clk 0:01:19]} 26. Nxf5+ {[%clk 0:00:57]}  Qxf5 {[%clk 0:01:17]} 27. Qd6 {[%clk 0:00:56]}  Rc8 {[%clk 0:01:14]} 28. h3 {[%clk 0:00:54]}  Qf6 {[%clk 0:01:10]} 29. Qd7 {[%clk 0:00:50]}  Rxc3 {[%clk 0:01:07]} 30. Qxb7 {[%clk 0:00:50]}  a5 {[%clk 0:01:05]} 31. Qe4 {[%clk 0:00:47]}  Ra3 {[%clk 0:00:56]} 32. Re2 {[%clk 0:00:44]}  Rc3 {[%clk 0:00:52]} 33. Kh2 {[%clk 0:00:42]}  Rc5 {[%clk 0:00:48]} 34. Qe3 {[%clk 0:00:39]}  Rf5 {[%clk 0:00:48]} 35. Qg3 {[%clk 0:00:37]}  a4 {[%clk 0:00:47]} 36. a3 {[%clk 0:00:36]}  Rb5 {[%clk 0:00:46]} 37. Re3 {[%clk 0:00:36]}  Rf5 {[%clk 0:00:41]} 38. Re2 {[%clk 0:00:32]}  h5 {[%clk 0:00:41]} 39. Re4 {[%clk 0:00:22]}  Rxf2 {[%clk 0:00:39]} 40. Rxa4 {[%clk 0:00:22]}  h4 {[%clk 0:00:36]} 41. Qxh4 {[%clk 0:00:20]}  Qe5+ {[%clk 0:00:31]} 42. Qg3 {[%clk 0:00:20]}  Qe1 {[%clk 0:00:29]} 43. Re4 {[%clk 0:00:17]}  Qf1 {[%clk 0:00:18]} 44. Qc3+ {[%clk 0:00:16]}  Kh7 {[%clk 0:00:18]} 45. Rh4+ {[%clk 0:00:16]}  Kg8 {[%clk 0:00:18]} 46. Qh8# {[%clk 0:00:16]} 1-0


[Site "https://www.chess.com"]